[Event "ESTCC 50 2019"]
[Site "Mali Losinj"]
[Date "2019.09.26"]
[Round "9.5"]
[White "Wallace, Paul"]
[Black "Burmakin, Vladimir"]
[Result "0-1"]
[ECO "B13"]
[WhiteElo "2153"]
[BlackElo "2496"]
[Annotator "ChessBase"]
[PlyCount "82"]
[EventDate "2019.09.18"]
[EventType "team-tourn"]
[EventCountry "CRO"]
[SourceTitle "playchess.com"]
[Source "ChessBase"]
[SourceQuality "1"]
[WhiteTeam "IRL"]
[BlackTeam "RUS"]
[WhiteTeamCountry "AUS"]
[BlackTeamCountry "RUS"]
[TimeControl "40/5400+30:1800+30"]

1. e4 {[%emt 0:00:30]} c6 {[%emt 0:00:30]} 2. d4 {[%emt 0:00:00]} d5 {[%emt 0:00:00]} 3. exd5 {[%emt 0:00:00]} cxd5 {[%emt 0:00:00]} 4. Bd3 {[%emt 0:00:00]} Nf6 {[%emt 0:00:30]} 5. Bf4 {[%emt 0:05:00]} g6 {[%emt 0:03:30]} 6. Nf3 {[%emt 0:01:30]} Bg7 {[%emt 0:00:30]} 7. O-O {[%emt 0:16:30]} O-O {[%emt 0:00:30]} 8. Nbd2 {[%emt 0:03:30]} Nc6 {[%emt 0:00:30]} 9. c3 {[%emt 0:01:30]} Nh5 {[%emt 0:04:30]} 10. Bg3 {[%emt 0:05:30]} Nxg3 {[%emt 0:02:30]} 11. hxg3 {[%emt 0:00:00]} Rb8 {[%emt 0:05:30]} 12. Re1 {[%emt 0:03:00]} Re8 {[%emt 0:01:30]} 13. a4 {[%emt 0:03:30]} Qd6 {[%emt 0:01:30]} 14. Qe2 {[%emt 0:11:30]} e5 {[%emt 0:22:30]} 15. dxe5 {[%emt 0:00:00]} Nxe5 {[%emt 0:00:00]} 16. Nxe5 {[%emt 0:02:00]} Rxe5 {[%emt 0:01:00]} 17. Qf1 {[%emt 0:02:30]} Rxe1 {[%emt 0:00:30]} 18. Qxe1 {[%emt 0:00:30]} Bd7 {[%emt 0:00:30]} 19. Nf3 {[%emt 0:00:30]} Qb6 {[%emt 0:02:30]} 20. Qd2 {[%emt 0:01:30]} a5 {[%emt 0:00:30]} 21. Bf1 {[%emt 0:04:30]} Bc6 {[%emt 0:02:30]} 22. Nd4 {[%emt 0:01:30]} Bxd4 {[%emt 0:01:30]} 23. cxd4 {[%emt 0:00:30]} Re8 {[%emt 0:00:30]} 24. Bb5 {[%emt 0:09:30]} Re4 {[%emt 0:12:30]} 25. Bxc6 {[%emt 0:03:30]} bxc6 {[%emt 0:00:00]} 26. Rd1 {[%emt 0:04:50]} Qb3 {[%emt 0:00:00]} 27. f3 {[%emt 0:00:36]} Re8 {[%emt 0:03:30]} 28. Re1 {[%emt 0:04:32]} Ra8 {[%emt 0:00:30]} 29. Ra1 {[%emt 0:00:28]} Rb8 {[%emt 0:01:30]} 30. Qxa5 {[%emt 0:03:19]} Qxb2 {[%emt 0:00:30]} 31. Rd1 {[%emt 0:00:36]} Qc2 {[%emt 0:00:30]} 32. Rd2 {[%emt 0:06:43]} Qc1+ {[%emt 0:00:30]} 33. Kh2 {[%emt 0:00:05]} Rb1 {[%emt 0:11:30]} 34. g4 {[%emt 0:01:19]} Qh1+ {[%emt 0:00:30]} 35. Kg3 {[%emt 0:00:04]} Qe1+ {[%emt 0:00:30]} 36. Kh3 {[%emt 0:02:32]} Kg7 {[%emt 0:00:00]} 37. Qc3 {[%emt 0:00:36]} Qh1+ {[%emt 0:01:00]} 38. Kg3 {[%emt 0:00:05]} g5 {[%emt 0:00:30]} 39. f4 {[%emt 0:01:22]} Qh4+ {[%emt 0:00:30]} 40. Kf3 {[%emt 0:00:04]} Rf1+ {[%emt 0:00:00]} 41. Ke2 {[%emt 0:31:20]} Qe1+ {[%emt 0:30:00]} 0-1

[Event "ESTCC 50 2019"]
[Site "Mali Losinj"]
[Date "2019.09.26"]
[Round "9.6"]
[White "Shcherbakov, Ruslan"]
[Black "Fox, Anthony"]
[Result "1/2-1/2"]
[ECO "E05"]
[WhiteElo "2516"]
[BlackElo "2023"]
[Annotator "ChessBase"]
[PlyCount "105"]
[EventDate "2019.09.18"]
[EventType "team-tourn"]
[EventCountry "CRO"]
[SourceTitle "playchess.com"]
[Source "ChessBase"]
[SourceQuality "1"]
[WhiteTeam "Russia"]
[BlackTeam "Ireland"]
[WhiteTeamCountry "RUS"]
[BlackTeamCountry "IRL"]
[TimeControl "40/5400+30:1800+30"]

1. d4 {[%emt 0:02:30]} d5 {[%emt 0:00:30]} 2. c4 {[%emt 0:00:30]} e6 {[%emt 0:00:00]} 3. Nf3 {[%emt 0:00:30]} Nf6 {[%emt 0:00:00]} 4. g3 {[%emt 0:00:30]} Be7 {[%emt 0:00:30]} 5. Bg2 {[%emt 0:00:00]} O-O {[%emt 0:00:00]} 6. O-O {[%emt 0:00:00]} dxc4 {[%emt 0:00:00]} 7. Qc2 {[%emt 0:01:30]} a6 {[%emt 0:00:30]} 8. a4 {[%emt 0:00:30]} Bd7 {[%emt 0:01:30]} 9. Qxc4 {[%emt 0:00:30]} Bc6 {[%emt 0:00:30]} 10. Bf4 {[%emt 0:00:30]} a5 {[%emt 0:06:30]} 11. Nc3 {[%emt 0:00:30]} Na6 {[%emt 0:00:30]} 12. Rac1 {[%emt 0:00:30]} Bxf3 {[%emt 0:03:30]} 13. Bxf3 {[%emt 0:00:00]} c6 {[%emt 0:00:30]} 14. Rfd1 {[%emt 0:05:00]} Nb4 {[%emt 0:01:30]} 15. Bd2 {[%emt 0:03:30]} Qb6 {[%emt 0:08:30]} 16. Nb1 {[%emt 0:09:30]} Rfd8 {[%emt 0:03:30]} 17. e3 {[%emt 0:01:30]} Qa7 {[%emt 0:09:30]} 18. Na3 {[%emt 0:04:30]} Rac8 {[%emt 0:10:30]} 19. Qb3 {[%emt 0:08:30]} Nd7 {[%emt 0:12:30]} 20. Bc3 {[%emt 0:03:30]} Nb6 {[%emt 0:02:30]} 21. h4 {[%emt 0:10:30]} N4d5 {[%emt 0:12:30]} 22. Be1 {[%emt 0:07:30]} Nf6 {[%emt 0:05:30]} 23. h5 {[%emt 0:04:30]} h6 {[%emt 0:01:04]} 24. Kg2 {[%emt 0:05:30]} Nfd7 {[%emt 0:03:43]} 25. Bc3 {[%emt 0:09:30]} Nf6 {[%emt 0:00:28]} 26. Be1 {[%emt 0:04:59]} Nfd7 {[%emt 0:00:36]} 27. Nb1 {[%emt 0:01:42]} Nf6 {[%emt 0:00:46]} 28. Nc3 {[%emt 0:02:05]} Nbd5 {[%emt 0:04:01]} 29. Ne2 {[%emt 0:00:18]} Bf8 {[%emt 0:02:06]} 30. Bd2 {[%emt 0:05:19]} Nb4 {[%emt 0:01:48]} 31. Nc3 {[%emt 0:00:30]} Re8 {[%emt 0:01:09]} 32. Ne4 {[%emt 0:02:21]} Nxe4 {[%emt 0:00:31]} 33. Bxe4 {[%emt 0:00:04]} Rcd8 {[%emt 0:01:45]} 34. Bc3 {[%emt 0:00:21]} Nd5 {[%emt 0:01:46]} 35. Bf3 {[%emt 0:01:27]} Nb4 {[%emt 0:01:01]} 36. Rd2 {[%emt 0:00:50]} Rd7 {[%emt 0:00:35]} 37. Rcd1 {[%emt 0:00:44]} Red8 {[%emt 0:01:06]} 38. Bxb4 {[%emt 0:04:06]} Bxb4 {[%emt 0:00:17]} 39. Rc2 {[%emt 0:01:24]} Qb8 {[%emt 0:01:01]} 40. Rcc1 {[%emt 0:00:20]} Qd6 {[%emt 0:02:05]} 41. Be4 {[%emt 0:31:20]} Qe7 {[%emt 0:01:42]} 42. Qc4 {[%emt 0:00:00]} Qf6 {[%emt 0:04:30]} 43. Bc2 {[%emt 0:00:00]} g6 {[%emt 0:11:37]} 44. hxg6 {[%emt 0:00:00]} fxg6 {[%emt 0:00:18]} 45. Bb3 {[%emt 0:00:00]} Rd6 {[%emt 0:01:46]} 46. Qe2 {[%emt 0:00:00]} Kg7 {[%emt 0:00:40]} 47. Rh1 {[%emt 0:00:00]} e5 {[%emt 0:01:20]} 48. Rh4 {[%emt 0:00:00]} g5 {[%emt 0:02:18]} 49. Re4 {[%emt 0:00:00]} exd4 {[%emt 0:02:13]} 50. exd4 {[%emt 0:00:00]} Rxd4 {[%emt 0:02:22]} 51. Re6 {[%emt 0:00:00]} Rd2 {[%emt 0:00:26]} 52. Qe3 {[%emt 0:00:00]} Qd4 {[%emt 0:03:15]} 53. Qxd4+ {[%emt 0:00:21]} 1/2-1/2

[Event "ESTCC 50 2019"]
[Site "Mali Losinj"]
[Date "2019.09.26"]
[Round "9.7"]
[White "Lyons, Brendan"]
[Black "Yakovich, Yuri"]
[Result "0-1"]
[ECO "A04"]
[WhiteElo "1971"]
[BlackElo "2518"]
[Annotator "ChessBase"]
[PlyCount "55"]
[EventDate "2019.09.18"]
[EventType "team-tourn"]
[EventCountry "CRO"]
[SourceTitle "playchess.com"]
[Source "ChessBase"]
[SourceQuality "1"]
[WhiteTeam "Ireland"]
[BlackTeam "Russia"]
[WhiteTeamCountry "IRL"]
[BlackTeamCountry "RUS"]
[TimeControl "40/5400+30:1800+30"]

1. e4 {[%emt 0:00:30]} c5 {[%emt 0:00:30]} 2. Nf3 {[%emt 0:00:00]} Nc6 {[%emt 0:00:00]} 3. d3 {[%emt 0:00:00]} g6 {[%emt 0:00:00]} 4. g3 {[%emt 0:00:00]} Bg7 {[%emt 0:00:30]} 5. Bg2 {[%emt 0:00:00]} e5 {[%emt 0:00:00]} 6. O-O {[%emt 0:00:30]} Nge7 {[%emt 0:00:00]} 7. c3 {[%emt 0:00:30]} O-O {[%emt 0:00:30]} 8. Re1 {[%emt 0:04:30]} d6 {[%emt 0:07:30]} 9. a3 {[%emt 0:01:30]} h6 {[%emt 0:00:00]} 10. b4 {[%emt 0:00:00]} a6 {[%emt 0:00:00]} 11. Nbd2 {[%emt 0:03:00]} Be6 {[%emt 0:00:30]} 12. Nb3 {[%emt 0:00:30]} b6 {[%emt 0:00:30]} 13. Bb2 {[%emt 0:00:00]} Rc8 {[%emt 0:02:30]} 14. Rb1 {[%emt 0:03:00]} Kh7 {[%emt 0:25:30]} 15. Nbd2 {[%emt 0:06:30]} f5 {[%emt 0:01:30]} 16. Bh3 {[%emt 0:05:30]} g5 {[%emt 0:09:30]} 17. exf5 {[%emt 0:16:30]} Bxf5 {[%emt 0:00:30]} 18. Bxf5+ {[%emt 0:02:30]} Nxf5 {[%emt 0:00:00]} 19. g4 {[%emt 0:18:30]} Nfe7 {[%emt 0:01:00]} 20. d4 {[%emt 0:09:30]} Ng6 {[%emt 0:10:30]} 21. d5 {[%emt 0:11:18]} Nce7 {[%emt 0:02:30]} 22. Ne4 {[%emt 0:00:35]} Qd7 {[%emt 0:10:30]} 23. Nfxg5+ {[%emt 0:11:34]} hxg5 {[%emt 0:01:30]} 24. Nxg5+ {[%emt 0:01:02]} Kg8 {[%emt 0:02:30]} 25. Re4 {[%emt 0:02:32]} Rf4 {[%emt 0:02:30]} 26. Rxf4 {[%emt 0:02:24]} Nxf4 {[%emt 0:00:30]} 27. Bc1 {[%emt 0:00:19]} Nexd5 {[%emt 0:06:16]} 28. Qf3 {[%emt 0:00:00]} 0-1

[Event "ESTCC 50 2019"]
[Site "Mali Losinj"]
[Date "2019.09.26"]
[Round "9.8"]
[White "Ibragimov, Ildar"]
[Black "Salter, David"]
[Result "1-0"]
[ECO "C10"]
[WhiteElo "2537"]
[BlackElo "1882"]
[Annotator "ChessBase"]
[PlyCount "45"]
[EventDate "2019.09.18"]
[EventType "team-tourn"]
[EventCountry "CRO"]
[SourceTitle "playchess.com"]
[Source "ChessBase"]
[SourceQuality "1"]
[WhiteTeam "Russia"]
[BlackTeam "Ireland"]
[WhiteTeamCountry "RUS"]
[BlackTeamCountry "IRL"]
[TimeControl "40/5400+30:1800+30"]

1. e4 {[%emt 0:00:30]} e6 {[%emt 0:00:30]} 2. d4 {[%emt 0:00:30]} d5 {[%emt 0:00:00]} 3. Nc3 {[%emt 0:00:30]} Nc6 {[%emt 0:00:00]} 4. Nf3 {[%emt 0:00:30]} Nf6 {[%emt 0:00:30]} 5. e5 {[%emt 0:04:30]} Ne4 {[%emt 0:01:30]} 6. Bd3 {[%emt 0:05:30]} f5 {[%emt 0:02:30]} 7. exf6 {[%emt 0:00:30]} Nxf6 {[%emt 0:00:30]} 8. O-O {[%emt 0:04:30]} Bd6 {[%emt 0:03:30]} 9. Nb5 {[%emt 0:03:30]} O-O {[%emt 0:02:30]} 10. Re1 {[%emt 0:00:00]} Bd7 {[%emt 0:04:30]} 11. c3 {[%emt 0:06:00]} Qe7 {[%emt 0:07:30]} 12. Bg5 {[%emt 0:03:30]} a6 {[%emt 0:07:30]} 13. Nxd6 {[%emt 0:00:30]} cxd6 {[%emt 0:00:30]} 14. Bh4 {[%emt 0:03:30]} Na5 {[%emt 0:09:30]} 15. Ng5 {[%emt 0:04:30]} g6 {[%emt 0:05:30]} 16. f4 {[%emt 0:10:30]} h6 {[%emt 0:06:30]} 17. Nxe6 {[%emt 0:01:30]} Bxe6 {[%emt 0:02:30]} 18. f5 {[%emt 0:00:00]} g5 {[%emt 0:10:30]} 19. Rxe6 {[%emt 0:00:00]} Qf7 {[%emt 0:07:30]} 20. Bg3 {[%emt 0:00:30]} Rfe8 {[%emt 0:01:30]} 21. Qe2 {[%emt 0:00:30]} Ne4 {[%emt 0:04:30]} 22. Bxe4 {[%emt 0:00:30]} dxe4 {[%emt 0:05:52]} 23. Rg6+ {[%emt 0:00:30]} 1-0

[Event "ESTCC 50 2019"]
[Site "Mali Losinj"]
[Date "2019.09.26"]
[Round "9.9"]
[White "Mikhalchishin, Adrian"]
[Black "Lauritzen, Einar"]
[Result "1-0"]
[ECO "B38"]
[WhiteElo "2465"]
[BlackElo "1990"]
[Annotator "ChessBase"]
[PlyCount "71"]
[EventDate "2019.09.18"]
[EventType "team-tourn"]
[EventCountry "CRO"]
[SourceTitle "playchess.com"]
[Source "ChessBase"]
[SourceQuality "1"]
[WhiteTeam "Slovenia"]
[BlackTeam "Norway"]
[WhiteTeamCountry "SLO"]
[BlackTeamCountry "NOR"]
[TimeControl "40/5400+30:1800+30"]

1. Nf3 {[%emt 0:00:30]} Nf6 {[%emt 0:01:30]} 2. c4 {[%emt 0:00:30]} c5 {[%emt 0:00:30]} 3. Nc3 {[%emt 0:01:30]} Nc6 {[%emt 0:00:30]} 4. d4 {[%emt 0:00:30]} cxd4 {[%emt 0:00:30]} 5. Nxd4 {[%emt 0:00:30]} g6 {[%emt 0:03:30]} 6. e4 {[%emt 0:03:30]} d6 {[%emt 0:08:30]} 7. Be2 {[%emt 0:06:30]} Bg7 {[%emt 0:06:30]} 8. Be3 {[%emt 0:01:30]} O-O {[%emt 0:03:30]} 9. O-O {[%emt 0:02:30]} Bd7 {[%emt 0:04:30]} 10. f3 {[%emt 0:02:30]} Rc8 {[%emt 0:02:30]} 11. Qd2 {[%emt 0:03:30]} a6 {[%emt 0:12:30]} 12. Rac1 {[%emt 0:11:30]} Nxd4 {[%emt 0:05:30]} 13. Bxd4 {[%emt 0:00:30]} Bc6 {[%emt 0:01:30]} 14. b4 {[%emt 0:01:30]} b6 {[%emt 0:11:30]} 15. Rfd1 {[%emt 0:01:30]} Qc7 {[%emt 0:06:30]} 16. Qe3 {[%emt 0:12:30]} Nd7 {[%emt 0:04:30]} 17. Nd5 {[%emt 0:09:30]} Bxd5 {[%emt 0:02:30]} 18. Bxg7 {[%emt 0:00:30]} Kxg7 {[%emt 0:00:30]} 19. cxd5 {[%emt 0:02:30]} Qb7 {[%emt 0:00:30]} 20. Rc3 {[%emt 0:00:00]} b5 {[%emt 0:02:30]} 21. Rdc1 {[%emt 0:00:00]} Kg8 {[%emt 0:03:58]} 22. Kf1 {[%emt 0:05:30]} Nb6 {[%emt 0:05:07]} 23. Rc6 {[%emt 0:01:30]} Rxc6 {[%emt 0:00:51]} 24. Rxc6 {[%emt 0:00:30]} Rb8 {[%emt 0:02:30]} 25. h4 {[%emt 0:03:30]} h5 {[%emt 0:01:19]} 26. a3 {[%emt 0:03:30]} Kg7 {[%emt 0:02:46]} 27. Qc3+ {[%emt 0:03:30]} Kg8 {[%emt 0:00:54]} 28. Rc7 {[%emt 0:00:30]} Qa8 {[%emt 0:05:15]} 29. Rxe7 {[%emt 0:00:30]} Rb7 {[%emt 0:00:28]} 30. Rc7 {[%emt 0:04:51]} Qa7 {[%emt 0:00:59]} 31. Rc6 {[%emt 0:00:34]} Qb8 {[%emt 0:00:06]} 32. Qf6 {[%emt 0:01:53]} Rd7 {[%emt 0:00:31]} 33. Kf2 {[%emt 0:01:06]} Nc4 {[%emt 0:00:49]} 34. Bxc4 {[%emt 0:01:46]} bxc4 {[%emt 0:00:06]} 35. Rxc4 {[%emt 0:00:27]} Qb6+ {[%emt 0:00:14]} 36. Kg3 {[%emt 0:01:18]} 1-0

[Event "ESTCC 50 2019"]
[Site "Mali Losinj"]
[Date "2019.09.26"]
[Round "9.10"]
[White "Olsen, Oystein Leif"]
[Black "Mohr, Georg"]
[Result "0-1"]
[ECO "C02"]
[WhiteElo "1974"]
[BlackElo "2445"]
[Annotator "NA"]
[PlyCount "56"]
[EventDate "2019.09.18"]
[EventType "team-tourn"]
[EventCountry "CRO"]
[SourceTitle "playchess.com"]
[Source "ChessBase"]
[SourceQuality "1"]
[WhiteTeam "Norway"]
[BlackTeam "Slovenia"]
[WhiteTeamCountry "NOR"]
[BlackTeamCountry "SLO"]
[TimeControl "40/5400+30:1800+30"]

1. e4 {[%emt 0:00:30]} e6 {[%emt 0:02:30]} 2. d4 {[%emt 0:00:00]} d5 {[%emt 0:00:30]} 3. e5 {[%emt 0:00:00]} c5 {[%emt 0:00:30]} 4. c3 {[%emt 0:00:30]} Nc6 {[%emt 0:00:00]} 5. Nf3 {[%emt 0:00:30]} Qb6 {[%emt 0:00:00]} 6. a3 {[%emt 0:00:30]} a5 {[%emt 0:00:30]} 7. Bd3 {[%emt 0:02:30]} Bd7 {[%emt 0:00:30]} 8. Bc2 {[%emt 0:00:30]} f6 {[%emt 0:11:30]} 9. O-O {[%emt 0:03:30]} fxe5 {[%emt 0:04:30]} 10. dxe5 {[%emt 0:00:30]} g6 {[%emt 0:02:30]} 11. a4 {[%emt 0:03:30]} Bg7 {[%emt 0:07:30]} 12. Re1 {[%emt 0:00:30]} Nh6 {[%emt 0:00:30]} 13. Na3 {[%emt 0:01:30]} O-O {[%emt 0:00:30]} 14. Nb5 {[%emt 0:00:30]} Nf7 {[%emt 0:00:30]} 15. Bf4 {[%emt 0:00:30]} Nd6 {[%emt 0:07:30]} 16. exd6 {[%emt 0:04:30]} Rxf4 {[%emt 0:02:30]} 17. Nc7 {[%emt 0:00:30]} Raf8 {[%emt 0:00:30]} 18. Nxe6 {[%emt 0:00:30]} Bxe6 {[%emt 0:00:00]} 19. Rxe6 {[%emt 0:00:00]} Nd8 {[%emt 0:10:00]} 20. Qxd5 {[%emt 0:10:00]} Nxe6 {[%emt 0:00:30]} 21. Qxe6+ {[%emt 0:00:00]} Kh8 {[%emt 0:00:30]} 22. Rd1 {[%emt 0:07:00]} Qxb2 {[%emt 0:13:30]} 23. d7 {[%emt 0:11:30]} Rd8 {[%emt 0:07:30]} 24. Be4 {[%emt 0:24:30]} Rf6 {[%emt 0:06:30]} 25. Qd5 {[%emt 0:02:30]} Rff8 {[%emt 0:03:01]} 26. Rd2 {[%emt 0:04:30]} Qxc3 {[%emt 0:01:00]} 27. Ng5 {[%emt 0:00:00]} Bd4 {[%emt 0:00:59]} 28. Rxd4 {[%emt 0:01:00]} Qe1# {[%emt 0:00:13]} 0-1

[Event "ESTCC 50 2019"]
[Site "Mali Losinj"]
[Date "2019.09.26"]
[Round "9.11"]
[White "Mencinger, Vojko"]
[Black "Andersen, Per O"]
[Result "1-0"]
[ECO "B42"]
[WhiteElo "2332"]
[BlackElo "1971"]
[Annotator "NA"]
[PlyCount "61"]
[EventDate "2019.09.18"]
[EventType "team-tourn"]
[EventCountry "CRO"]
[SourceTitle "playchess.com"]
[Source "ChessBase"]
[SourceQuality "1"]
[WhiteTeam "Slovenia"]
[BlackTeam "Norway"]
[WhiteTeamCountry "SLO"]
[BlackTeamCountry "NOR"]
[TimeControl "40/5400+30:1800+30"]

1. e4 {[%emt 0:00:30]} c5 {[%emt 0:00:30]} 2. Nc3 {[%emt 0:00:00]} e6 {[%emt 0:01:30]} 3. Nf3 {[%emt 0:00:00]} a6 {[%emt 0:00:30]} 4. d4 {[%emt 0:00:30]} cxd4 {[%emt 0:00:00]} 5. Nxd4 {[%emt 0:00:30]} Qc7 {[%emt 0:00:00]} 6. Bd3 {[%emt 0:00:00]} Nf6 {[%emt 0:02:30]} 7. O-O {[%emt 0:02:00]} d6 {[%emt 0:01:30]} 8. Kh1 {[%emt 0:00:30]} Nbd7 {[%emt 0:00:30]} 9. f4 {[%emt 0:00:30]} Be7 {[%emt 0:00:30]} 10. Qe2 {[%emt 0:00:30]} O-O {[%emt 0:10:30]} 11. Bd2 {[%emt 0:00:30]} Nc5 {[%emt 0:00:30]} 12. Rae1 {[%emt 0:00:30]} Nxd3 {[%emt 0:05:30]} 13. cxd3 {[%emt 0:00:30]} Re8 {[%emt 0:06:30]} 14. Rc1 {[%emt 0:02:30]} Qd8 {[%emt 0:04:30]} 15. g4 {[%emt 0:00:30]} e5 {[%emt 0:03:30]} 16. Nf5 {[%emt 0:10:30]} Bf8 {[%emt 0:18:30]} 17. g5 {[%emt 0:02:30]} Nd7 {[%emt 0:04:30]} 18. Nd5 {[%emt 0:12:30]} Nc5 {[%emt 0:06:30]} 19. Nh6+ {[%emt 0:06:30]} gxh6 {[%emt 0:00:30]} 20. f5 {[%emt 0:01:30]} Kh8 {[%emt 0:08:30]} 21. Rg1 {[%emt 0:07:30]} Be6 {[%emt 0:03:30]} 22. gxh6 {[%emt 0:11:30]} Qh4 {[%emt 0:03:22]} 23. Bg5 {[%emt 0:10:30]} Qxg5 {[%emt 0:03:34]} 24. Rxg5 {[%emt 0:00:30]} Bxh6 {[%emt 0:00:30]} 25. Qh5 {[%emt 0:00:30]} Bxg5 {[%emt 0:04:45]} 26. Qxg5 {[%emt 0:00:00]} Rg8 {[%emt 0:05:28]} 27. Qf6+ {[%emt 0:01:00]} Rg7 {[%emt 0:00:05]} 28. Rg1 {[%emt 0:00:30]} Rag8 {[%emt 0:00:12]} 29. Rxg7 {[%emt 0:00:30]} Rxg7 {[%emt 0:00:06]} 30. fxe6 {[%emt 0:00:30]} fxe6 {[%emt 0:00:43]} 31. Ne7 {[%emt 0:00:30]} 1-0

[Event "ESTCC 50 2019"]
[Site "Mali Losinj"]
[Date "2019.09.26"]
[Round "9.12"]
[White "Ortoft, Kai"]
[Black "Plesec, Damjan"]
[Result "1/2-1/2"]
[ECO "A44"]
[WhiteElo "1957"]
[BlackElo "2216"]
[Annotator "NA"]
[PlyCount "61"]
[EventDate "2019.09.18"]
[EventType "team-tourn"]
[EventCountry "CRO"]
[SourceTitle "playchess.com"]
[Source "ChessBase"]
[SourceQuality "1"]
[WhiteTeam "Norway"]
[BlackTeam "Slovenia"]
[WhiteTeamCountry "NOR"]
[BlackTeamCountry "SLO"]
[TimeControl "40/5400+30:1800+30"]

1. d4 {[%emt 0:00:30]} c5 {[%emt 0:02:30]} 2. d5 {[%emt 0:00:00]} e5 {[%emt 0:00:00]} 3. e4 {[%emt 0:01:00]} d6 {[%emt 0:00:00]} 4. Nc3 {[%emt 0:00:30]} Be7 {[%emt 0:00:30]} 5. Nf3 {[%emt 0:01:30]} Bg4 {[%emt 0:02:30]} 6. h3 {[%emt 0:03:30]} Bxf3 {[%emt 0:01:30]} 7. Qxf3 {[%emt 0:00:30]} Bg5 {[%emt 0:00:30]} 8. Qg4 {[%emt 0:02:30]} Bxc1 {[%emt 0:00:30]} 9. Bb5+ {[%emt 0:00:00]} Kf8 {[%emt 0:00:30]} 10. Rxc1 {[%emt 0:00:00]} a6 {[%emt 0:00:30]} 11. Be2 {[%emt 0:01:30]} b5 {[%emt 0:01:30]} 12. O-O {[%emt 0:01:30]} Nf6 {[%emt 0:04:30]} 13. Qf3 {[%emt 0:00:30]} g6 {[%emt 0:01:30]} 14. a4 {[%emt 0:04:30]} b4 {[%emt 0:05:30]} 15. Nd1 {[%emt 0:00:30]} Kg7 {[%emt 0:01:30]} 16. b3 {[%emt 0:04:30]} Nh5 {[%emt 0:02:30]} 17. g3 {[%emt 0:00:30]} Qg5 {[%emt 0:04:30]} 18. Ne3 {[%emt 0:03:30]} Nf4 {[%emt 0:02:30]} 19. h4 {[%emt 0:05:30]} Nxe2+ {[%emt 0:00:30]} 20. Qxe2 {[%emt 0:00:00]} Qe7 {[%emt 0:00:00]} 21. Qg4 {[%emt 0:01:00]} h5 {[%emt 0:03:00]} 22. Qf3 {[%emt 0:05:30]} Nd7 {[%emt 0:02:30]} 23. Kg2 {[%emt 0:00:30]} Nb6 {[%emt 0:09:30]} 24. Qe2 {[%emt 0:00:30]} Rhc8 {[%emt 0:01:30]} 25. a5 {[%emt 0:00:30]} Nd7 {[%emt 0:00:30]} 26. Nc4 {[%emt 0:00:30]} Rf8 {[%emt 0:00:30]} 27. Ne3 {[%emt 0:04:30]} Nf6 {[%emt 0:05:30]} 28. f3 {[%emt 0:01:30]} Nd7 {[%emt 0:05:30]} 29. Qd3 {[%emt 0:00:30]} Qd8 {[%emt 0:02:30]} 30. Ra1 {[%emt 0:00:30]} Qe7 {[%emt 0:00:30]} 31. Rac1 {[%emt 0:00:30]} 1/2-1/2

[Event "ESTCC 50 2019"]
[Site "Mali Losinj"]
[Date "2019.09.26"]
[Round "9.13"]
[White "Ledger, Andrew J"]
[Black "Blatny, Pavel"]
[Result "1-0"]
[ECO "B00"]
[WhiteElo "2343"]
[BlackElo "2325"]
[Annotator "NA"]
[PlyCount "81"]
[EventDate "2019.09.18"]
[EventType "team-tourn"]
[EventCountry "CRO"]
[SourceTitle "playchess.com"]
[Source "ChessBase"]
[SourceQuality "1"]
[WhiteTeam "England"]
[BlackTeam "Czech Republic"]
[WhiteTeamCountry "ENG"]
[BlackTeamCountry "CZE"]
[TimeControl "40/5400+30:1800+30"]

1. e4 {[%emt 0:00:30]} b6 {[%emt 0:02:30]} 2. d4 {[%emt 0:00:00]} Bb7 {[%emt 0:00:00]} 3. Bd3 {[%emt 0:00:00]} e6 {[%emt 0:00:00]} 4. Nf3 {[%emt 0:00:30]} d6 {[%emt 0:00:30]} 5. O-O {[%emt 0:00:30]} Nd7 {[%emt 0:00:30]} 6. Re1 {[%emt 0:00:30]} g6 {[%emt 0:00:30]} 7. Nbd2 {[%emt 0:01:30]} Bg7 {[%emt 0:00:00]} 8. Nf1 {[%emt 0:00:30]} Ne7 {[%emt 0:00:00]} 9. c3 {[%emt 0:01:30]} h6 {[%emt 0:00:30]} 10. Ng3 {[%emt 0:00:30]} a6 {[%emt 0:00:30]} 11. a4 {[%emt 0:01:30]} c5 {[%emt 0:01:30]} 12. Be3 {[%emt 0:04:30]} Qc7 {[%emt 0:00:00]} 13. Qe2 {[%emt 0:03:30]} e5 {[%emt 0:02:00]} 14. dxe5 {[%emt 0:06:30]} dxe5 {[%emt 0:01:30]} 15. Red1 {[%emt 0:11:30]} Nf6 {[%emt 0:00:30]} 16. b4 {[%emt 0:06:30]} O-O {[%emt 0:02:30]} 17. a5 {[%emt 0:04:30]} c4 {[%emt 0:13:30]} 18. Bxc4 {[%emt 0:12:30]} bxa5 {[%emt 0:00:00]} 19. Bc5 {[%emt 0:07:30]} Rfc8 {[%emt 0:04:00]} 20. Rxa5 {[%emt 0:01:30]} Nc6 {[%emt 0:01:30]} 21. Raa1 {[%emt 0:01:30]} Nb8 {[%emt 0:01:30]} 22. Ba2 {[%emt 0:09:30]} Ne8 {[%emt 0:01:30]} 23. Qc4 {[%emt 0:08:49]} a5 {[%emt 0:04:30]} 24. h4 {[%emt 0:01:14]} Na6 {[%emt 0:01:30]} 25. h5 {[%emt 0:00:28]} g5 {[%emt 0:00:30]} 26. Nf5 {[%emt 0:01:07]} Nxc5 {[%emt 0:00:30]} 27. bxc5 {[%emt 0:00:04]} Ba6 {[%emt 0:03:30]} 28. Qa4 {[%emt 0:02:07]} Qxc5 {[%emt 0:01:30]} 29. Bd5 {[%emt 0:06:04]} Bb5 {[%emt 0:02:30]} 30. Qa2 {[%emt 0:01:19]} Ra7 {[%emt 0:01:30]} 31. Rab1 {[%emt 0:01:52]} Nf6 {[%emt 0:09:30]} 32. Bxf7+ {[%emt 0:03:20]} Rxf7 {[%emt 0:00:30]} 33. Rxb5 {[%emt 0:00:08]} Qf8 {[%emt 0:27:15]} 34. Nxe5 {[%emt 0:00:04]} Nxe4 {[%emt 0:00:40]} 35. Nxf7 {[%emt 0:00:48]} Nxc3 {[%emt 0:00:49]} 36. N7xh6+ {[%emt 0:00:51]} Kh7 {[%emt 0:04:07]} 37. Qe6 {[%emt 0:00:14]} Qe8 {[%emt 0:02:04]} 38. Qg6+ {[%emt 0:00:55]} Qxg6 {[%emt 0:00:13]} 39. hxg6+ {[%emt 0:00:04]} Kxg6 {[%emt 0:00:35]} 40. Rb6+ {[%emt 0:00:31]} Bf6 {[%emt 0:00:54]} 41. Ne7+ {[%emt 0:30:48]} 1-0